fUSD/lending_fUSD_20250115
["ID","MTS","AMOUNT","RATE_DAILY","PERIOD"]
[349101010,1736968271524,-500.0,0.00043013,4]
[349101011,1736968271534,-500.0,0.00043013,4]
[349101012,1736968271544,-201.26854985,0.00043013,4]
[349101013,1736968271553,-500.0,0.00043013,4]
[349101014,1736968271563,-500.0,0.00043013,4]
[349101015,1736968271574,-500.0,0.00043013,4]
[349101016,1736968271583,-1653.0,0.00043013,4]
[349101017,1736968271594,-500.0,0.00043013,4]
[349101018,1736968271604,-500.0,0.00043013,4]
[349101019,1736968271619,-500.0,0.00043013,4]
[349101020,1736968271629,-1653.0,0.00043013,4]
[349101021,1736968271639,-500.0,0.00043013,4]
[349101022,1736968271649,-500.0,0.00043013,4]
[349101023,1736968271659,-500.0,0.00043013,4]
[349101024,1736968271669,-1653.0,0.00043013,4]
[349101025,1736968271679,-500.0,0.00043013,4]
[349101026,1736968271692,-459.1140899,0.00043013,4]
[349101027,1736968271702,-500.0,0.00043013,4]
[349101028,1736968271712,-1653.0,0.00043013,4]
[349101029,1736968271722,-500.0,0.00043013,4]
[349101030,1736968271732,-303.28,0.00043013,4]
[349101031,1736968271742,-500.0,0.00043013,4]
[349101032,1736968271752,-1653.0,0.00043013,4]
[349101033,1736968271762,-500.0,0.00043013,4]
[349101034,1736968271772,-500.0,0.00043013,4]
[349101035,1736968271782,-1653.0,0.00043013,4]
[349101036,1736968271925,-500.0,0.00043013,4]
[349101037,1736968271936,-500.0,0.00043013,4]
[349101038,1736968271946,-1653.0,0.00043013,4]
[349101039,1736968271955,-500.0,0.00043013,4]
[349101040,1736968271964,-500.0,0.00043013,4]
[349101041,1736968271973,-500.0,0.00043013,4]
[349101042,1736968271982,-1653.0,0.00043013,4]
[349101043,1736968271991,-500.0,0.00043013,4]
[349101044,1736968272000,-500.0,0.00043013,4]
[349101045,1736968272009,-500.0,0.00043013,4]
[349101046,1736968272020,-1653.0,0.00043013,4]
[349101047,1736968272031,-500.0,0.00043013,4]
[349101048,1736968272039,-500.0,0.00043013,4]
[349101049,1736968272049,-1653.0,0.00043013,4]
[349101050,1736968272059,-500.0,0.00043013,4]
[349101051,1736968272069,-610.81597187,0.00043013,4]
[349101052,1736968272079,-500.0,0.00043013,4]
[349101053,1736968272088,-1653.0,0.00043013,4]
[349101054,1736968272098,-500.0,0.00043013,4]
[349101055,1736968272107,-500.0,0.00043013,4]
[349101056,1736968272118,-1653.0,0.00043013,4]
[349101057,1736968272127,-594.5338496,0.00043013,4]
[349101058,1736968272136,-500.0,0.00043013,4]
[349101059,1736968272146,-500.0,0.00043013,4]
[349101060,1736968272155,-500.0,0.00043013,4]
[349101061,1736968272165,-500.0,0.00043013,4]
[349101062,1736968272175,-500.0,0.00043013,4]
[349101063,1736968272184,-500.0,0.00043013,4]
[349101064,1736968272193,-500.0,0.00043013,4]
[349101065,1736968272202,-589.32713201,0.00043013,4]
[349101066,1736968272211,-500.0,0.00043013,4]
[349101067,1736968272221,-169.33173366,0.00043013,4]
[349101068,1736968272231,-500.0,0.00043013,4]
[349101069,1736968272240,-500.0,0.00043013,4]
[349101070,1736968272249,-500.0,0.00043013,4]
[349101071,1736968272259,-500.0,0.00043013,4]
[349101072,1736968272268,-500.0,0.00043013,4]
[349101073,1736968272277,-500.0,0.00043013,4]
[349101074,1736968272287,-500.0,0.00043013,4]
[349101075,1736968272296,-500.0,0.00043013,4]
[349101076,1736968272305,-500.0,0.00043013,4]
[349101077,1736968272315,-500.0,0.00043013,4]
[349101078,1736968272325,-170.91919624,0.00043013,4]
[349101079,1736968272334,-500.0,0.00043013,4]
[349101080,1736968272343,-500.0,0.00043013,4]
[349101081,1736968272352,-500.0,0.00043013,4]
[349101082,1736968272362,-500.0,0.00043013,4]
[349101083,1736968272372,-500.0,0.00043013,4]
[349101084,1736968272382,-500.0,0.00043013,4]
[349101085,1736968272391,-500.0,0.00043013,4]
[349101086,1736968272402,-500.0,0.00043013,4]
[349101087,1736968272413,-500.0,0.00043013,4]
[349101088,1736968272422,-500.0,0.00043013,4]
[349101089,1736968272432,-500.0,0.00043013,4]
[349101090,1736968272441,-500.0,0.00043013,4]
[349101091,1736968272451,-500.0,0.00043013,4]
[349101092,1736968272460,-500.0,0.00043013,4]
[349101093,1736968272471,-500.0,0.00043013,4]
[349101094,1736968272480,-500.0,0.00043013,4]
[349101095,1736968272489,-500.0,0.00043013,4]
[349101096,1736968272499,-500.0,0.00043013,4]
[349101097,1736968272509,-500.0,0.00043013,4]
[349101098,1736968272519,-199.29,0.00043013,4]
[349101099,1736968272528,-500.0,0.00043013,4]
[349101100,1736968272537,-500.0,0.00043013,4]
[349101101,1736968272547,-500.0,0.00043013,4]
[349101102,1736968272557,-500.0,0.00043013,4]
[349101103,1736968272566,-500.0,0.00043013,4]
[349101104,1736968272576,-500.0,0.00043013,4]
[349101105,1736968272586,-500.0,0.00043013,4]
[349101106,1736968272595,-543.6,0.00043013,4]
[349101107,1736968272605,-500.0,0.00043013,4]
[349101108,1736968272618,-500.0,0.00043013,4]
[349101109,1736968272627,-500.0,0.00043013,4]
[349101110,1736968272636,-500.0,0.00043013,4]
[349101111,1736968272647,-500.0,0.00043013,4]
[349101112,1736968272657,-500.0,0.00043013,4]
[349101113,1736968272668,-500.0,0.00043013,4]
[349101114,1736968272677,-500.0,0.00043013,4]
[349101115,1736968272687,-635.6876136,0.00043013,4]
[349101116,1736968272696,-500.0,0.00043013,4]
[349101117,1736968272705,-500.0,0.00043013,4]
[349101118,1736968272715,-500.0,0.00043013,4]
[349101119,1736968272724,-526.36,0.00043013,4]
[349101120,1736968272733,-500.0,0.00043013,4]
[349101121,1736968272743,-500.0,0.00043013,4]
[349101122,1736968272752,-500.0,0.00043013,4]
[349101123,1736968272762,-502.77021046,0.00043013,4]
[349101124,1736968272771,-500.0,0.00043013,4]
[349101125,1736968272780,-500.0,0.00043013,4]
[349101126,1736968272790,-500.0,0.00043013,4]
[349101127,1736968272800,-500.0,0.00043013,4]
[349101128,1736968272809,-500.0,0.00043013,4]
[349101129,1736968272819,-500.0,0.00043013,4]
[349101130,1736968272828,-500.0,0.00043013,4]
[349101131,1736968272837,-356.96,0.00043013,4]
[349101132,1736968272847,-500.0,0.00043036,4]
[349101133,1736968272857,-581.64,0.00043036,4]
[349101134,1736968272866,-500.0,0.00043036,4]
[349101135,1736968272875,-1194.16,0.00043036,4]
[349101136,1736968272884,-537.58,0.00043036,4]
[349101137,1736968272894,-510.02,0.00043036,4]
[349101138,1736968272904,-890.04,0.00043036,4]
[349101139,1736968272913,-500.0,0.00043036,4]
[349101140,1736968272922,-531.36909068,0.00043036,4]
[349101141,1736968272932,-1007.5,0.00043036,4]
[349101142,1736968272943,-774.6,0.00043036,4]
[349101143,1736968272952,-640.06,0.00043036,4]
[349101144,1736968272962,-2288.53,0.00043036,4]
[349101145,1736968272971,-500.0,0.00043036,4]
[349101146,1736968272980,-1816.05,0.00043036,4]
[349101147,1736968272990,-662.57,0.00043036,4]
[349101148,1736968272999,-618.72,0.00043036,4]
[349101149,1736968273008,-151.0,0.00043038,14]
[349101150,1736968273018,-151.0,0.00043038,14]
[349101151,1736968273027,-151.0,0.00043038,14]
[349101152,1736968273037,-1037.89,0.00043038,4]
[349101153,1736968273046,-1037.89,0.00043039,4]
[349101154,1736968273056,-1037.89,0.00043039,4]
[349101155,1736968273066,-1037.89,0.00043039,4]
[349101156,1736968273075,-1037.89,0.00043039,4]
[349101157,1736968273084,-1037.89,0.00043039,4]
[349101158,1736968273094,-1037.93429227,0.00043039,4]
[349101159,1736968273103,-151.0,0.0004304,14]
[349101160,1736968273113,-151.0,0.0004304,14]
[349101161,1736968273123,-151.0,0.0004304,14]
[349101162,1736968273133,-3000.0,0.0004306,16]
[349101163,1736968273142,-157.0,0.00043062,7]
[349101164,1736968273152,-6149.45087271,0.0004307,2]
[349101165,1736968273161,-500.0,0.00043073,10]
[349101166,1736968273170,-150.0,0.00043226,2]
[349101167,1736968273180,-150.0,0.00043226,2]
[349101168,1736968273190,-150.0,0.00043228,2]
[349101169,1736968273199,-154.28618406,0.00043232,2]
[349101170,1736968273208,-150.0,0.00043238,2]
[349101171,1736968273217,-150.0,0.00043241,2]
[349101172,1736968273227,-33.42004344,0.00043241,2]
[349101173,1736968273241,-116.57995656,0.00043241,2]
[349101174,1736968273251,-150.0,0.00043249,2]
[349101175,1736968273260,-150.0,0.00043256,2]
[349101176,1736968273270,-150.0,0.00043257,2]
[349101177,1736968273279,-150.0,0.0004326,2]
[349101178,1736968273289,-150.0,0.00043262,2]
[349101179,1736968273298,-150.0,0.00043264,2]
[349101180,1736968273307,-150.0,0.00043265,2]
[349101181,1736968273317,-150.0,0.00043265,2]
[349101182,1736968273327,-150.0,0.00043266,2]
[349101183,1736968273336,-150.0,0.0004327,2]
[349101184,1736968273347,-150.0,0.0004327,2]
[349101185,1736968273357,-150.0,0.00043271,2]
[349101186,1736968273367,-150.0,0.00043271,2]
[349101187,1736968273376,-150.0,0.00043275,2]
[349101188,1736968273387,-150.0,0.00043275,2]
[349101189,1736968273396,-150.0,0.00043277,2]
[349101190,1736968273406,-150.0,0.00043278,2]
[349101191,1736968273416,-150.0,0.00043281,2]
[349101192,1736968273426,-150.0,0.00043282,2]
[349101193,1736968273436,-150.0,0.00043287,2]
[349101194,1736968273446,-2500.0,0.00043287,120]
[349101195,1736968273458,-150.0,0.00043289,2]
[349101196,1736968273468,-150.0,0.0004329,2]
[349101197,1736968273478,-248.43770648,0.00043293,15]
[349101198,1736968273488,-150.0,0.00043298,2]
[349101199,1736968273497,-584.0,0.000433,30]
[349101200,1736968273507,-150.0,0.00043301,2]
[349101201,1736968273517,-150.0,0.00043303,2]
[349101202,1736968273527,-150.0,0.00043305,2]
[349101203,1736968273536,-150.0,0.00043316,2]
[349101204,1736968273546,-150.0,0.00043316,2]
[349101205,1736968273556,-150.0,0.00043328,2]
[349101206,1736968273566,-150.0,0.00043332,2]
[349101207,1736968273576,-150.0,0.00043336,2]
[349101208,1736968273586,-150.0,0.00043337,2]
[349101209,1736968273595,-150.0,0.00043338,2]
[349101210,1736968273607,-150.0,0.0004334,2]
[349101211,1736968273617,-300.0,0.00043342,2]
[349101212,1736968273626,-150.0,0.00043354,2]
[349101213,1736968273636,-150.0,0.00043357,2]
[349101214,1736968273647,-150.0,0.00043358,2]
[349101215,1736968273660,-150.0,0.00043358,2]
[349101216,1736968273670,-150.0,0.00043361,2]
[349101217,1736968273682,-150.0,0.00043362,2]
[349101218,1736968273692,-150.0,0.00043363,2]
[349101219,1736968273702,-150.0,0.0004337,2]
[349101220,1736968273713,-150.0,0.00043374,2]
[349101221,1736968273723,-150.0,0.00043376,2]
[349101222,1736968273733,-150.0,0.00043377,2]
[349101223,1736968273743,-150.0,0.00043377,2]
[349101224,1736968273754,-150.0,0.00043381,2]
[349101225,1736968273764,-150.0,0.00043388,2]
[349101226,1736968273772,-150.0,0.00043392,2]
[349101227,1736968273782,-150.0,0.00043392,2]
[349101228,1736968273792,-150.0,0.00043398,2]
[349101229,1736968273802,-150.0,0.00043398,2]
[349101230,1736968273812,-755.13,0.00043399,4]
[349101231,1736968273822,-755.13,0.00043399,4]
[349101232,1736968273832,-755.13,0.00043399,4]
[349101233,1736968273841,-755.13,0.00043399,4]
[349101234,1736968273851,-755.15,0.00043399,4]
[349101235,1736968273861,-790.36,0.00043399,4]
[349101236,1736968273871,-790.36,0.00043399,4]
[349101237,1736968273880,-790.36,0.00043399,4]
[349101238,1736968273890,-790.36,0.00043399,4]
[349101239,1736968273899,-790.43,0.00043399,4]
[349101240,1736968273910,-584.49,0.00043399,4]
[349101241,1736968273920,-584.49,0.00043399,4]
[349101242,1736968273930,-584.49,0.00043399,4]
[349101243,1736968273941,-584.49,0.00043399,4]
[349101244,1736968273955,-584.72567347,0.00043399,4]
[349101245,1736968273974,-1314.27,0.00043399,4]
[349101246,1736968273983,-1314.27,0.00043399,4]
[349101247,1736968273993,-1314.27,0.00043399,4]
[349101248,1736968274002,-1314.27,0.00043399,4]
[349101249,1736968274012,-1314.48,0.00043399,4]
[349101250,1736968274022,-804.16,0.00043399,4]
[349101251,1736968274031,-804.16,0.00043399,4]
[349101252,1736968274041,-804.16,0.00043399,4]
[349101253,1736968274050,-804.16,0.00043399,4]
[349101254,1736968274060,-804.22667274,0.00043399,4]
[349101255,1736968274069,-1391.87,0.00043399,4]
[349101256,1736968274079,-1391.87,0.00043399,4]
[349101257,1736968274088,-1391.87,0.00043399,4]
[349101258,1736968274097,-1391.87,0.00043399,4]
[349101259,1736968274108,-1391.92949664,0.00043399,4]
[349101260,1736968274117,-513.03,0.00043399,4]
[349101261,1736968274127,-513.03,0.00043399,4]
[349101262,1736968274136,-513.03,0.00043399,4]
[349101263,1736968274146,-513.03,0.00043399,4]
[349101264,1736968274155,-513.23,0.00043399,4]
[349101265,1736968274165,-1853.95,0.00043399,4]
[349101266,1736968274174,-1853.95,0.00043399,4]
[349101267,1736968274184,-1853.95,0.00043399,4]
[349101268,1736968274194,-1853.95,0.00043399,4]
[349101269,1736968274203,-1854.11159335,0.00043399,4]
[349101270,1736968274213,-502.96,0.00043399,4]
[349101271,1736968274222,-502.96,0.00043399,4]
[349101272,1736968274232,-502.96,0.00043399,4]
[349101273,1736968274242,-502.96,0.00043399,4]
[349101274,1736968274251,-502.98227572,0.00043399,4]
[349101275,1736968274261,-870.07,0.00043399,4]
[349101276,1736968274272,-870.07,0.00043399,4]
[349101277,1736968274281,-870.07,0.00043399,4]
[349101278,1736968274291,-870.07,0.00043399,4]
[349101279,1736968274301,-870.09,0.00043399,4]
[349101280,1736968274310,-1167.27,0.00043399,4]
[349101281,1736968274323,-1167.27,0.00043399,4]
[349101282,1736968274332,-1167.27,0.00043399,4]
[349101283,1736968274342,-1167.27,0.00043399,4]
[349101284,1736968274351,-1167.35091429,0.00043399,4]
[349101285,1736968274361,-815.23,0.00043399,4]
[349101286,1736968274371,-815.23,0.00043399,4]
[349101287,1736968274381,-815.23,0.00043399,4]
[349101288,1736968274390,-815.23,0.00043399,4]
[349101289,1736968274400,-815.34604882,0.00043399,4]
[349101290,1736968274410,-1062.61,0.00043399,4]
[349101291,1736968274419,-1062.61,0.00043399,4]
[349101292,1736968274429,-1062.61,0.00043399,4]
[349101293,1736968274439,-1062.61,0.00043399,4]
[349101294,1736968274448,-1062.63636925,0.00043399,4]
[349101295,1736968274459,-500.0,0.00043399,4]
[349101296,1736968274468,-500.0,0.00043399,4]
[349101297,1736968274478,-500.0,0.00043399,4]
[349101298,1736968274487,-500.0,0.00043399,4]
[349101299,1736968274497,-347.83,0.00043399,4]
[349101300,1736968274506,-1073.63,0.00043399,4]
[349101301,1736968274516,-1073.63,0.00043399,4]
[349101302,1736968274525,-1073.63,0.00043399,4]
[349101303,1736968274535,-1073.63,0.00043399,4]
[349101304,1736968274545,-1073.75871621,0.00043399,4]
[349101305,1736968274555,-1212.68,0.00043399,4]
[349101306,1736968274565,-1212.68,0.00043399,4]
[349101307,1736968274574,-1212.68,0.00043399,4]
[349101308,1736968274584,-1212.68,0.00043399,4]
[349101309,1736968274593,-1212.75303494,0.00043399,4]
[349101310,1736968274603,-805.26,0.00043399,4]
[349101311,1736968274617,-805.26,0.00043399,4]
[349101312,1736968274626,-805.26,0.00043399,4]
[349101313,1736968274636,-805.26,0.00043399,4]
[349101314,1736968274646,-805.36,0.00043399,4]
[349101315,1736968274658,-955.23,0.00043399,4]
[349101316,1736968274668,-955.23,0.00043399,4]
[349101317,1736968274678,-955.23,0.00043399,4]
[349101318,1736968274688,-955.23,0.00043399,4]
[349101319,1736968274697,-955.24740586,0.00043399,4]
[349101320,1736968274707,-942.74,0.00043399,4]
[349101321,1736968274716,-942.74,0.00043399,4]
[349101322,1736968274726,-942.74,0.00043399,4]
[349101323,1736968274735,-942.74,0.00043399,4]
[349101324,1736968274745,-942.97615563,0.00043399,4]
[349101325,1736968274754,-598.69,0.00043399,4]
[349101326,1736968274764,-598.69,0.00043399,4]
[349101327,1736968274774,-598.69,0.00043399,4]
[349101328,1736968274783,-598.69,0.00043399,4]
[349101329,1736968274793,-517.30301499,0.00043399,4]
[349101330,1736968274807,-81.51210399,0.00043399,4]
[349101331,1736968274816,-1343.46,0.00043399,4]
[349101332,1736968274825,-1343.46,0.00043399,4]
[349101333,1736968274835,-1343.46,0.00043399,4]
[349101334,1736968274844,-1343.46,0.00043399,4]
[349101335,1736968274853,-1343.53134559,0.00043399,4]
[349101336,1736968274871,-170.98885638,0.00043399,4]
[349101337,1736968274885,-329.01114362,0.00043399,4]
[349101338,1736968274895,-181.67885637,0.00043399,4]
[349101339,1736968274907,-51.79114363,0.00043399,4]
[349101340,1736968274917,-198.94835637,0.00043399,4]
[349101341,1736968274929,-782.81164363,0.00043399,4]
[349101342,1736968274940,-55.87728818,0.00043399,4]
[349101343,1736968274955,-925.88271182,0.00043399,4]
[349101344,1736968274965,-981.76,0.00043399,4]
[349101345,1736968274975,-981.76,0.00043399,4]
[349101346,1736968274985,-981.99727016,0.00043399,4]
[349101347,1736968274994,-1338.86,0.00043399,4]
[349101348,1736968275004,-1338.86,0.00043399,4]
[349101349,1736968275191,-1338.86,0.00043399,4]
[349101350,1736968275202,-1338.86,0.00043399,4]
[349101351,1736968275214,-1338.89460221,0.00043399,4]
[349101352,1736968275227,-1653.0,0.00043399,4]
[349101353,1736968275237,-1653.0,0.00043399,4]
[349101354,1736968275248,-1653.0,0.00043399,4]
[349101355,1736968275258,-1653.0,0.00043399,4]
[349101356,1736968275267,-1653.09,0.00043399,4]
[349101357,1736968275277,-71830.71490503,0.000434,120]
[349101358,1736968275288,-21628.41321567,0.000434,120]
[349101359,1736968275300,-3284.0,0.000434,120]
[349101360,1736968275421,-1948.85246465,0.000434,120]
[349101361,1736968275436,-2402.83710908,0.000434,120]
[349101362,1736968275450,-10188.04781019,0.000434,120]
[349101363,1736968275461,-2981.94530141,0.000434,120]
[349101364,1736968275473,-464.64669873,0.000434,120]
[349101365,1736968275485,-360.82173846,0.000434,120]
[349101366,1736968275496,-405.61758418,0.000434,120]
[349101367,1736968275507,-594.38241582,0.000434,120]
[349101368,1736968275518,-7204.59203402,0.000434,120]
[349101369,1736968275531,-301.6796241,0.000434,120]
[349101370,1736968275602,-150.0,0.00015,20]
[349101371,1736968275615,-207.18,0.00043013,4]
[349101372,1736968275626,-292.82,0.00043013,4]
[349101373,1736968275635,-136.91984,0.00043013,4]
[349101374,1736968275646,-288.26999,0.00043013,4]
[349101375,1736968275693,-35.25795485,0.00043013,4]
[349101376,1736968275706,-39.55221515,0.00043013,4]
[349101377,1736968275716,-500.0,0.00043013,4]
[349101378,1736968275725,-182.84778485,0.00043013,4]
[349101379,1736968275795,-12497.79813978,0.00018792,2]
[349101380,1736968275805,-317.15221515,0.00043013,4]
[349101381,1736968275814,-387.16838012,0.00043013,4]
[349101382,1736968275823,-505.27246082,0.00043013,4]
[349101383,1736968275833,-150.0,0.00043013,4]
[349101384,1736968275842,-500.0,0.00043013,4]
[349101385,1736968275851,-500.0,0.00043013,4]
[349101386,1736968275860,-500.0,0.00043013,4]
[349101387,1736968275870,-500.0,0.00043013,4]
[349101388,1736968275880,-500.0,0.00043013,4]
[349101389,1736968275889,-500.0,0.00043013,4]
[349101390,1736968275899,-97004.18342815,0.000434,120]
[349101391,1736968275908,-150.0,0.000434,2]
[349101392,1736968275920,-4444.32460296,0.000434,2]
[349101393,1736968275930,-3379.02118856,0.000434,34]
[349101394,1736968275950,-500.0,0.00043013,4]
[349101395,1736968275959,-511.99,0.00043013,4]
[349101396,1736968275969,-1670.97881144,0.000434,34]
[349101397,1736968275979,-150.0,0.00043405,2]
[349101398,1736968275989,-150.0,0.00043406,2]
[349101399,1736968275999,-150.0,0.00043408,2]
[349101400,1736968276009,-150.0,0.00043416,2]
[349101401,1736968276018,-150.0,0.0004342,2]
[349101402,1736968276028,-150.0,0.0004342,2]
[349101403,1736968276037,-150.0,0.00043425,2]
[349101404,1736968276047,-150.0,0.00043429,2]
[349101405,1736968276056,-150.0,0.00043432,2]
[349101406,1736968276066,-150.0,0.00043434,2]
[349101407,1736968276075,-150.0,0.00043436,2]
[349101408,1736968276085,-150.0,0.00043438,2]
[349101409,1736968276094,-150.0,0.00043439,2]
[349101410,1736968276104,-150.0,0.00043442,2]
[349101411,1736968276113,-150.0,0.00043443,2]
[349101412,1736968276123,-150.0,0.00043444,2]
[349101413,1736968276133,-150.0,0.00043445,2]
[349101414,1736968276142,-99.03118856,0.00043451,2]
[349101415,1736968276154,-50.96881144,0.00043451,2]
[349101416,1736968276164,-150.0,0.00043453,2]
[349101417,1736968276174,-150.0,0.00043454,2]
[349101418,1736968276183,-150.0,0.00043457,2]
[349101419,1736968276193,-150.0,0.00043463,2]
[349101420,1736968276202,-150.0,0.00043465,2]
[349101421,1736968276211,-150.0,0.00043465,2]
[349101422,1736968276220,-150.0,0.00043471,2]
[349101423,1736968276229,-150.0,0.00043472,2]
[349101424,1736968276239,-150.0,0.00043477,2]
[349101425,1736968276248,-150.0,0.00043481,2]
[349101426,1736968276258,-150.0,0.00043484,2]
[349101427,1736968276268,-150.0,0.00043485,2]
[349101428,1736968276277,-150.0,0.00043489,2]
[349101429,1736968276287,-150.0,0.00043489,2]
[349101430,1736968276297,-150.0,0.00043492,2]
[349101431,1736968276306,-150.0,0.00043497,2]
[349101432,1736968276316,-150.0,0.00043497,2]
[349101433,1736968276327,-264.298279,0.00043498,2]
[349101434,1736968276339,-500.0,0.00043499,4]
[349101435,1736968276349,-500.0,0.00043499,4]
[349101436,1736968276359,-558.34,0.00043499,4]
[349101437,1736968276369,-581.64,0.00043499,4]
[349101438,1736968276379,-581.64,0.00043499,4]
[349101439,1736968276389,-581.64,0.00043499,4]
[349101440,1736968276398,-581.64,0.00043499,4]
[349101441,1736968276408,-581.69,0.00043499,4]
[349101442,1736968276419,-500.0,0.00043499,4]
[349101443,1736968276429,-224.9,0.00043499,4]
[349101444,1736968276438,-1194.16,0.00043499,4]
[349101445,1736968276447,-1194.16,0.00043499,4]
[349101446,1736968276457,-1194.16,0.00043499,4]
[349101447,1736968276467,-1194.16,0.00043499,4]
[349101448,1736968276477,-1194.17999373,0.00043499,4]
[349101449,1736968276487,-537.58,0.00043499,4]
[349101450,1736968276496,-537.58,0.00043499,4]
[349101451,1736968276505,-537.58,0.00043499,4]
[349101452,1736968276515,-537.58,0.00043499,4]
[349101453,1736968276524,-537.73,0.00043499,4]
[349101454,1736968276534,-510.02,0.00043499,4]
[349101455,1736968276544,-510.02,0.00043499,4]
[349101456,1736968276553,-510.02,0.00043499,4]
[349101457,1736968276563,-510.02,0.00043499,4]
[349101458,1736968276572,-510.25101602,0.00043499,4]
[349101459,1736968276582,-890.04,0.00043499,4]
[349101460,1736968276592,-890.04,0.00043499,4]
[349101461,1736968276601,-890.04,0.00043499,4]
[349101462,1736968276615,-890.04,0.00043499,4]
[349101463,1736968276628,-890.13,0.00043499,4]
[349101464,1736968276637,-500.0,0.00043499,4]
[349101465,1736968276647,-500.0,0.00043499,4]
[349101466,1736968276657,-500.0,0.00043499,4]
[349101467,1736968276667,-425.55,0.00043499,4]
[349101468,1736968276677,-1007.5,0.00043499,4]
[349101469,1736968276686,-1007.5,0.00043499,4]
[349101470,1736968276696,-1007.5,0.00043499,4]
[349101471,1736968276706,-1007.5,0.00043499,4]
[349101472,1736968276715,-1007.73917769,0.00043499,4]
[349101473,1736968276724,-774.6,0.00043499,4]
[349101474,1736968276733,-774.6,0.00043499,4]
[349101475,1736968276743,-774.6,0.00043499,4]
[349101476,1736968276752,-774.6,0.00043499,4]
[349101477,1736968276762,-774.73,0.00043499,4]
[349101478,1736968276772,-640.06,0.00043499,4]
[349101479,1736968276782,-640.06,0.00043499,4]
[349101480,1736968276791,-640.06,0.00043499,4]
[349101481,1736968276801,-640.06,0.00043499,4]
[349101482,1736968276810,-640.07,0.00043499,4]
[349101483,1736968276820,-2288.53,0.00043499,4]
[349101484,1736968276830,-2288.53,0.00043499,4]
[349101485,1736968276839,-2288.53,0.00043499,4]
[349101486,1736968276848,-2288.53,0.00043499,4]
[349101487,1736968276858,-2288.53446279,0.00043499,4]
[349101488,1736968276867,-500.0,0.00043499,4]
[349101489,1736968276876,-500.0,0.00043499,4]
[349101490,1736968276886,-500.0,0.00043499,4]
[349101491,1736968276895,-438.62,0.00043499,4]
[349101492,1736968276904,-1816.05,0.00043499,4]
[349101493,1736968276914,-1816.05,0.00043499,4]
[349101494,1736968276923,-1816.05,0.00043499,4]
[349101495,1736968276932,-1816.05,0.00043499,4]
[349101496,1736968276942,-1816.06999999,0.00043499,4]
[349101497,1736968276951,-662.57,0.00043499,4]
[349101498,1736968276961,-662.57,0.00043499,4]
[349101499,1736968276970,-662.57,0.00043499,4]
[349101500,1736968276979,-662.57,0.00043499,4]
[349101501,1736968276989,-662.77983,0.00043499,4]
[349101502,1736968276998,-618.72,0.00043499,4]
[349101503,1736968277007,-618.72,0.00043499,4]
[349101504,1736968277016,-618.72,0.00043499,4]
[349101505,1736968277025,-618.72,0.00043499,4]
[349101506,1736968277034,-618.94,0.00043499,4]
[349101507,1736968277043,-98947.41025091,0.000435,35]
[349101508,1736968277056,-1690.17359801,0.000435,35]
[349101509,1736968277067,-480.6373055,0.000435,35]